[Event "EYTCC Open U18 2022"]
[Site "Thessaloniki"]
[Date "2022.07.18"]
[Round "7.34"]
[White "Veljanoski, Andrej"]
[Black "Betsakos, Haralampos"]
[Result "1-0"]
[ECO "B19"]
[WhiteElo "2162"]
[BlackElo "1183"]
[Annotator "TA"]
[PlyCount "43"]
[EventDate "2022.07.12"]
[EventType "team-tourn"]
[EventCountry "GRE"]
[SourceTitle "playchess.com"]
[Source "ChessBase"]
[SourceQuality "1"]
[WhiteTeam "Macedonia"]
[BlackTeam "Greece"]
[WhiteTeamCountry "MKD"]
[BlackTeamCountry "GRE"]
[TimeControl "40/5400+30:1800+30"]

{[%evp 23,43,16,37,21,41,35,48,0,4,0,43,25,53,18,40,33,24,0,0,-12,65,6]} 1. e4 {[%emt 0:00:19]} c6 {[%emt 0:00:05]} 2. d4 {[%emt 0:00:07]} d5 {[%emt 0:00:05]} 3. Nd2 {[%emt 0:00:05][%cal Bb1d2,Bd2e4,Be4g3][%mdl 32]} dxe4 {[%emt 0:00:27]} 4. Nxe4 {[%emt 0:00:06]} Bf5 {[%emt 0:00:06]} 5. Ng3 {[%emt 0:00:05]} Bg6 {[%emt 0:00:41]} 6. h4 {[%emt 0:00:06]} h6 {[%emt 0:00:23]} 7. Nf3 {[%emt 0:00:07]} Nd7 {[%emt 0:01:29]} 8. h5 {[%emt 0:01:01]} Bh7 {[%emt 0:00:25]} 9. Bd3 {[%emt 0:00:59]} Bxd3 {[%emt 0:00:27]} 10. Qxd3 {[%emt 0:00:06]} e6 {[%emt 0:03:43]} 11. Bf4 {[%emt 0:01:18]} Ngf6 {[%emt 0:01:20]} 12. O-O-O {[%emt 0:00:26]} Be7 {[%emt 0:05:19]} 13. Kb1 {[%emt 0:01:43] B19: Classical Caro-Kann: 4...Bf5 main line.} Nd5 {[%emt 0:08:10]} 14. Bd2 {[%emt 0:01:11]} Qc7 {[%emt 0:01:58]} 15. c4 {[%emt 0:06:35]} N5f6 {[%emt 0:01:11]} 16. Ne4 {[%emt 0:06:22]} O-O-O {[%emt 0:03:48]} 17. Nc3 {[%emt 0:02:02] [#]} Kb8 $146 {[%emt 0:05:27]} ({Predecessor:} 17... Ng4 18. Qe2 Ndf6 19. Ne5 Nxe5 20. dxe5 Nd7 21. f4 Nc5 22. Be3 Qa5 23. Qc2 Rxd1+ 24. Rxd1 {½-½ (61) Bojda,L (2123)-Gazik,R (2052) Slovakia 2015}) 18. Qc2 {[%emt 0:02:58]} Bd6 {[%emt 0:11:04]} 19. g3 {[%emt 0:02:21] [#] And now c5 would win.} Qc8 {[%emt 0:02:11]} 20. Rh4 {[%emt 0:12:41]} e5 {[%emt 0:09:37]} 21. d5 {[%emt 0:03:33]} Nb6 {[%emt 0:07:54]} (21... Bc5 $11) 22. Be3 {[%emt 0:02:09][%mdl 32768] Weighted Error Value: White=0.16 (very precise) /Black=0.22 (precise) . Loss on time!?} ({Better is} 22. c5 $1 $14 Bxc5 23. Nxe5) 1-0

[Event "EYTCC Open U18 2022"]
[Site "Thessaloniki"]
[Date "2022.07.18"]
[Round "7.35"]
[White "Karkanas, Stylianos"]
[Black "Jordanov, Mihail"]
[Result "0-1"]
[ECO "D00"]
[WhiteElo "1089"]
[BlackElo "2158"]
[Annotator "TA"]
[PlyCount "136"]
[EventDate "2022.07.12"]
[EventType "team-tourn"]
[EventCountry "GRE"]
[SourceTitle "playchess.com"]
[Source "ChessBase"]
[SourceQuality "1"]
[WhiteTeam "Greece"]
[BlackTeam "Macedonia"]
[WhiteTeamCountry "GRE"]
[BlackTeamCountry "MKD"]
[TimeControl "40/5400+30:1800+30"]

{[%evp 9,136,0,0,-2,0,0,-8,-9,-6,-10,0,-3,-7,0,7,0,14,0,30,15,15,0,0,4,38,36,43,32,64,16,29,0,0,-134,-133,-125,-44,-97,-102,-143,-39,-42,-36,-39,-41,-37,-39,-27,-27,-110,-93,-86,-49,-46,-46,-54,-52,-49,-50,-104,-104,-101,-106,-108,-111,-121,-121,-113,-112,-111,-83,-95,-59,-63,-63,-63,-71,-635,-617,-517,-517,-708,-706,-584,-619,-704,-666,-597,-568,-582,-575,-12738,-12575,-5716,-7997,-7996,-11281,-12843,0,-539,-477,-415,-281,-2414,-1730,-7302,-7786,-5831,-5565,-5105,-5085,-29969,-29971,-29971,-29972,-29969,-29968,-29973,-29974,-29974,-29975,-29975,-29976,-29976,-29976,-29986,-29987,-29988,-29989]} 1. d4 {[%emt 0:00:03]} d5 {[%emt 0:00:07]} 2. Bf4 {[%emt 0:00:12]} c5 {[%emt 0:00:06]} 3. e3 {[%emt 0:00:16]} Nc6 {[%emt 0:00:14]} 4. c3 {[%emt 0:00:25]} Bf5 {[%emt 0:03:30]} 5. Bd3 {[%emt 0:05:21]} Bxd3 {[%emt 0:01:53]} 6. Qxd3 {[%emt 0:00:23] D00: 1 d4 d5: Unusual lines.} Qb6 {[%emt 0:00:21]} 7. Qc2 {[%emt 0:00:29]} e6 {[%emt 0:00:39]} 8. Nf3 {[%emt 0:02:36] [#] The position is equal.} Rc8 $146 {[%emt 0:01:29]} ({Predecessor:} 8... Nf6 9. Nbd2 Nh5 10. Bg3 Rc8 11. Nb3 Nf6 12. O-O Ne4 13. Bf4 Be7 14. Nbd2 Nf6 {½-½ (29) In 'T Veld,H (2105)-Hruby,J (2195) ICCF email 2017}) 9. Qb3 {[%emt 0:02:58]} Qa6 {[%emt 0:01:22]} 10. Nbd2 {[%emt 0:06:39]} Nf6 {[%emt 0:02:58]} 11. a4 {[%emt 0:03:45]} Nh5 {[%emt 0:04:33]} 12. Bg3 {[%emt 0:01:26]} Nxg3 {[%emt 0:03:07]} 13. hxg3 {[%emt 0:00:47]} Qb6 {[%emt 0:04:07]} 14. Qxb6 {[%emt 0:04:48]} axb6 {[%emt 0:00:05]} 15. Ke2 {[%emt 0:01:15]} Be7 {[%emt 0:03:59]} 16. Ne5 {[%emt 0:17:07]} Nxe5 {[%emt 0:13:44]} 17. dxe5 {[%emt 0:00:33]} Ra8 {[%emt 0:00:28]} 18. e4 {[%emt 0:04:33]} O-O {[%emt 0:03:00]} 19. Rhb1 {[%emt 0:09:39]} (19. f4 $14 {might be stronger.}) 19... f6 $11 {[%emt 0:06:17]} 20. exd5 {[%emt 0:06:16]} exd5 {[%emt 0:00:30]} 21. f4 {[%emt 0:00:44]} (21. e6 $11 {remains equal.}) 21... fxe5 $17 {[%emt 0:03:13]} 22. fxe5 {[%emt 0:01:00]} Rfe8 {[%emt 0:00:00] Black is more active.} (22... Rae8 $1 $17 {aiming for ...Bd6.} 23. Nf3 Bf6) 23. Nf3 {[%emt 0:01:31]} (23. Kd3 $15) 23... Bd6 {[%emt 0:00:53]} 24. b4 {[%emt 0:01:41]} cxb4 {[%emt 0:04:48]} (24... Bxe5 $17 25. Nxe5 Rxe5+ 26. Kf2 Rf8+ 27. Kg1 d4 28. cxd4 cxd4) 25. Kd3 $15 {[%emt 0:01:34]} Bxe5 {[%emt 0:01:11]} 26. Nxe5 {[%emt 0:01:22]} Rxe5 {[%emt 0:00:05]} 27. Rxb4 {[%emt 0:00:17][%mdl 4096] Endgame KRR-KRR} Ra6 {[%emt 0:01:09]} 28. Rf1 {[%emt 0:05:05]} Re4 {[%emt 0:03:13]} 29. Rb5 {[%emt 0:03:54]} (29. Rf4 $11) 29... Rexa4 {[%emt 0:02:51]} 30. Rxd5 {[%emt 0:00:42][%cal Rd5d8]} Ra8 {[%emt 0:00:35] Against Rd8+} 31. Rd7 {[%emt 0:02:59]} Rg4 {[%emt 0:00:52]} 32. Rf3 {[%emt 0:00:27]} Rb8 {[%emt 0:00:47]} 33. Ke2 {[%emt 0:02:07]} b5 {[%emt 0:01:30]} 34. Kf2 {[%emt 0:01:54]} (34. Rd5 $15) 34... b4 $17 {[%emt 0:00:52]} 35. cxb4 {[%emt 0:00:18]} Rxb4 {[%emt 0:00:09]} 36. Rff7 {[%emt 0:00:41]} Rf8 {[%emt 0:00:12]} 37. Rxf8+ {[%emt 0:00:43]} Kxf8 {[%emt 0:00:05] KR-KR} 38. Kf3 {[%emt 0:02:58]} h6 {[%emt 0:01:56]} 39. g4 {[%emt 0:01:20]} Kg8 {[%emt 0:05:09]} 40. Kg3 {[%emt 0:00:00]} b5 {[%emt 0:00:00]} 41. Rb7 {[%emt 0:02:34]} g5 {[%emt 0:12:17]} 42. Rb6 {[%emt 0:02:26]} Kg7 {[%emt 0:00:32]} 43. Rb7+ $2 {[%emt 0:00:22][%mdl 8192] White is on the road to losing.} (43. Kf2 $17) 43... Kf6 $1 $19 {[%emt 0:00:20]} 44. Rb6+ {[%emt 0:00:25] [#]} Ke5 $1 {[%emt 0:00:29]} 45. Rxh6 {[%emt 0:00:20]} Rb3+ {[%emt 0:00:03]} 46. Kf2 {[%emt 0:02:01] [#]} Kf4 $1 {[%emt 0:00:21]} 47. Rf6+ {[%emt 0:01:25]} Kxg4 {[%emt 0:00:08]} 48. Rd6 {[%emt 0:01:55]} Rb2+ {[%emt 0:01:58]} 49. Kf1 {[%emt 0:01:04]} b4 {[%emt 0:00:58]} 50. Rd4+ {[%emt 0:00:56]} Kg3 {[%emt 0:00:27]} 51. Rd3+ {[%emt 0:05:23]} Kf4 {[%emt 0:00:48] ...b3 is the strong threat.} 52. Rf3+ {[%emt 0:00:40]} Ke4 {[%emt 0:01:41]} 53. Rg3 {[%emt 0:00:35]} Kf4 {[%emt 0:00:19]} (53... b3 $142 {( -> ...Rb1+)} 54. Ke1 Kf5 55. Rf3+ Kg4) 54. Rf3+ {[%emt 0:00:12]} Kg4 {[%emt 0:00:05]} 55. Kg1 {[%emt 0:02:59]} Rb1+ {[%emt 0:08:51]} ({Wrong is} 55... b3 $2 56. Kh1 $19) 56. Kf2 $2 {[%emt 0:01:23]} (56. Kh2) 56... b3 {[%emt 0:01:33][%cal Bb4b3,Bb3b2][%mdl 32]} 57. Rg3+ {[%emt 0:00:34]} Kf4 {[%emt 0:00:39]} 58. Rf3+ {[%emt 0:00:18]} Ke4 {[%emt 0:01:35] Strongly threatening ...Kd4.} 59. Kg3 {[%emt 0:03:48]} Rb2 {[%emt 0:02:22]} 60. Rf8 {[%emt 0:02:34]} Rd2 {[%emt 0:01:42] Black mates.} 61. Rb8 {[%emt 0:01:13]} b2 {[%emt 0:00:12]} 62. Kh3 {[%emt 0:01:02]} g4+ {[%emt 0:03:05]} 63. Kxg4 {[%emt 0:02:27]} Rxg2+ {[%emt 0:00:06]} 64. Kh3 {[%emt 0:00:12]} Rd2 {[%emt 0:00:29]} 65. Kg3 {[%emt 0:00:11]} Kd3 {[%emt 0:00:29]} 66. Kf3 {[%emt 0:01:25]} Kc2 {[%emt 0:00:19]} 67. Ke3 {[%emt 0:00:28]} Rd3+ {[%emt 0:00:32]} 68. Ke2 {[%emt 0:00:38]} Rc3 {[%emt 0:00:53] Weighted Error Value: White=0.79/Black=0.22 (precise)} 0-1

[Event "EYTCC Open U18 2022"]
[Site "Thessaloniki"]
[Date "2022.07.18"]
[Round "7.37"]
[White "Stoimenidis, Dimitrios"]
[Black "Pekkul, Arda"]
[Result "1/2-1/2"]
[ECO "B33"]
[WhiteElo "1993"]
[BlackElo "1599"]
[Annotator "TA"]
[PlyCount "79"]
[EventDate "2022.07.12"]
[EventType "team-tourn"]
[EventCountry "GRE"]
[SourceTitle "playchess.com"]
[Source "ChessBase"]
[SourceQuality "1"]
[WhiteTeam "Greece"]
[BlackTeam "Turkey"]
[WhiteTeamCountry "GRE"]
[BlackTeamCountry "TUR"]
[TimeControl "40/5400+30:1800+30"]

{[%evp 32,79,21,12,20,-2,8,4,4,4,7,0,0,0,16,-1,-2,-3,-3,-58,-56,-54,-66,-63,-72,-75,-81,-81,-81,-77,-62,-81,-81,-79,-73,-69,-70,-68,-19,-51,-41,-103,-33,-33,-33,-33,-33,-32,-32,-32]} 1. e4 {[%emt 0:00:04] ChessBase II} c5 {[%emt 0:00:13]} 2. Nf3 {[%emt 0:00:05][%cal Bg1f3,Bf3d4,Bd4b5,Bb5a3,Ba3c2,Bc2b4][%mdl 32]} e6 {[%emt 0:00:07]} 3. d4 {[%emt 0:00:03]} cxd4 {[%emt 0:00:06]} 4. Nxd4 {[%emt 0:00:03]} Nf6 {[%emt 0:00:09]} 5. Nc3 {[%emt 0:00:02]} Nc6 {[%emt 0:00:07]} 6. Ndb5 {[%emt 0:00:04]} d6 {[%emt 0:00:06]} 7. Bf4 {[%emt 0:00:04]} e5 {[%emt 0:00:06]} 8. Bg5 {[%emt 0:00:03]} a6 {[%emt 0:00:07]} 9. Na3 {[%emt 0:00:11]} b5 {[%emt 0:00:04]} 10. Nd5 {[%emt 0:00:10]} Be7 {[%emt 0:00:06]} 11. Bxf6 {[%emt 0:00:25]} Bxf6 {[%emt 0:00:06]} 12. c3 {[%emt 0:00:15]} Ne7 {[%emt 0:00:04]} 13. Nc2 {[%emt 0:03:30]} Nxd5 {[%emt 0:02:06]} 14. Qxd5 {[%emt 0:01:30]} Rb8 {[%emt 0:00:41]} 15. Nb4 {[%emt 0:11:00]} Bb7 {[%emt 0:01:27]} 16. Qd3 {[%emt 0:00:15]} O-O {[%emt 0:01:11]} 17. Be2 {[%emt 0:00:19] [#]} Be7 $146 {[%emt 0:15:37] B33: Sicilian: Pelikan and Sveshnikov Variations.} ({Predecessor (2):} 17... a5 18. Nd5 b4 19. O-O bxc3 20. bxc3 Bg5 21. Rab1 Qd7 22. Rb3 Bc6 23. Rfb1 Rxb3 24. Rxb3 g6 25. Rb6 Rc8 26. h3 Bxd5 27. Qxd5 Rxc3 28. Rxd6 Qe7 29. Bd1 Rc7 30. g3 Kg7 31. Ba4 Bc1 32. Rc6 {½-½ (31) Giri,A (2793)-Carlsen,M (2853) Saint Louis 2015 CBM 168 [ChessBase II]}) 18. Bf3 {[%emt 0:00:46]} d5 {[%emt 0:11:36]} 19. Nxd5 {[%emt 0:01:29]} Bxd5 {[%emt 0:00:21] The position is equal.} 20. Qxd5 {[%emt 0:00:11]} Qc7 {[%emt 0:00:06]} 21. O-O {[%emt 0:04:29]} Rfd8 {[%emt 0:17:02]} (21... Rbd8 $5 22. Qb3 Rd2 $11) 22. Qb3 {[%emt 0:00:07]} b4 {[%emt 0:00:54]} 23. Rac1 {[%emt 0:05:14]} bxc3 {[%emt 0:01:12]} 24. Rxc3 {[%emt 0:00:10]} Qa5 {[%emt 0:00:13]} 25. Qc2 {[%emt 0:07:18]} (25. Qc4 $11) 25... Qxa2 $15 {[%emt 0:02:25]} 26. Rb1 {[%emt 0:02:33] [#]} Rd2 $1 $36 {[%emt 0:25:09][%mdl 2048] Black is pushing.} 27. Qxd2 {[%emt 0:37:04]} Qxb1+ {[%emt 0:00:07]} 28. Bd1 {[%emt 0:08:52]} Rd8 {[%emt 0:19:32]} (28... Rxb2 $2 {gets mated.} 29. Rc8+ Bf8 30. Rxf8+ $1 {[%mdl 512]} Kxf8 31. Qd8#) 29. Rc1 {[%emt 0:00:26] Hoping for Qxd8+.} Qxe4 {[%emt 0:00:06]} 30. Qe2 {[%emt 0:07:03]} Qf4 {[%emt 0:00:24]} 31. Qe3 {[%emt 0:05:46]} Qxe3 {[%emt 0:00:13]} 32. fxe3 $17 {[%emt 0:00:05][%mdl 4096] Endgame KRB-KRB} Rd2 {[%emt 0:00:18]} 33. Rc8+ {[%emt 0:03:22]} Bf8 {[%emt 0:00:09]} 34. Bb3 {[%emt 0:00:25]} Rd7 {[%emt 0:02:54] Against Rc7} (34... g6 $15 35. Rc2 Rxc2 36. Bxc2 Bc5) 35. Ra8 {[%emt 0:03:47]} g6 {[%emt 0:01:14]} 36. Rxa6 {[%emt 0:00:44] [#]} (36. Kf1 $15) 36... Kg7 {[%emt 0:00:06]} (36... Bc5 $1 $17 37. Kf1 Bxe3) 37. Rc6 $15 {[%emt 0:00:23] Black is slightly better.} f5 {[%emt 0:00:58]} 38. Rc2 {[%emt 0:00:27]} Rd3 {[%emt 0:01:18][%csl LRb3,LRe3]} 39. Rc7+ {[%emt 0:00:25]} Kh6 {[%emt 0:00:22]} 40. Rc3 {[%emt 0:00:00] Weighted Error Value: White=0.13 (very precise) /Black=0.08 (flawless)} 1/2-1/2

[Event "EYTCC Open U18 2022"]
[Site "Thessaloniki"]
[Date "2022.07.18"]
[Round "7.38"]
[White "Atis, Hasan"]
[Black "Karamichos, Michail"]
[Result "1-0"]
[ECO "C70"]
[WhiteElo "1956"]
[BlackElo "1839"]
[Annotator "TA"]
[PlyCount "77"]
[EventDate "2022.07.12"]
[EventType "team-tourn"]
[EventCountry "GRE"]
[SourceTitle "playchess.com"]
[Source "ChessBase"]
[SourceQuality "1"]
[WhiteTeam "Turkey"]
[BlackTeam "Greece"]
[WhiteTeamCountry "TUR"]
[BlackTeamCountry "GRE"]
[TimeControl "40/5400+30:1800+30"]

{[%evp 14,77,41,21,41,28,35,13,32,41,46,0,0,0,0,6,27,26,17,0,78,87,76,54,79,21,112,91,222,219,267,179,123,115,112,113,832,816,753,758,2259,635,2238,2225,29978,29979,29986,29987,29986,29987,29990,29991,29990,29991,29994,29991,29991,29992,29993,29994,29996,29997,29997,29998,29998,29999]} 1. e4 {[%emt 0:00:02]} e5 {[%emt 0:00:10]} 2. Nf3 {[%emt 0:00:08]} Nc6 {[%emt 0:00:07]} 3. Bb5 {[%emt 0:00:04]} a6 {[%emt 0:00:07]} 4. Ba4 {[%emt 0:00:01]} g6 {[%emt 0:00:16]} 5. O-O {[%emt 0:00:31]} Bg7 {[%emt 0:00:10]} 6. c3 {[%emt 0:00:10][%cal Bc2c3,Bc3d4][%mdl 32]} Nge7 {[%emt 0:00:08]} 7. d4 {[%emt 0:00:45]} exd4 {[%emt 0:00:17]} 8. cxd4 {[%emt 0:00:22]} b5 {[%emt 0:00:07][%cal Bb7b5,Bb5b4][%mdl 32] C60: Ruy Lopez: Unusual Black 3rd moves and 3...g6.} 9. Bc2 {[%emt 0:01:28]} O-O {[%emt 0:00:18]} 10. Nc3 {[%emt 0:07:04]} d6 {[%emt 0:00:20] The position is equal.} (10... b4 $5 {[%cal Rb4c3]}) 11. h3 {[%emt 0:19:12] Inhibits Bg4.} Na5 {[%emt 0:02:07]} 12. a4 {[%emt 0:02:32]} b4 {[%emt 0:01:04]} 13. Ne2 {[%emt 0:07:29]} c5 {[%emt 0:02:22]} 14. Bg5 $36 {[%emt 0:05:36][%mdl 2048] [#] White has some pressure.} c4 $146 {[%emt 0:10:48]} ({Predecessor:} 14... h6 15. Be3 Nc4 16. Bc1 Bb7 17. b3 Nb6 18. Nd2 cxd4 19. Bd3 Nc6 20. Bb2 Ne5 {0-1 (32) Maksutov,S (2136)-Megalios,K (2401) Chess.com INT 2020}) 15. Qd2 {[%emt 0:08:15]} Rb8 {[%emt 0:00:55]} 16. Rfe1 {[%emt 0:09:09]} Re8 {[%emt 0:03:42]} (16... d5 $11) 17. Qf4 $16 {[%emt 0:06:18]} Bb7 {[%emt 0:07:09]} 18. Qh4 {[%emt 0:01:20]} Qd7 {[%emt 0:06:22]} 19. Rad1 {[%emt 0:08:29]} (19. Bh6 $16) 19... Nac6 {[%emt 0:05:14]} (19... Nc8 $11 {keeps the balance.}) 20. Nf4 {[%emt 0:02:33]} d5 {[%emt 0:06:01]} (20... b3 $16 21. Bb1 Nb4) 21. e5 $18 {[%emt 0:03:39] And now Bf6 would win.} Nd8 {[%emt 0:00:52]} 22. g4 {[%emt 0:07:51] Black must now prevent Bf6.} ({And not} 22. Bxe7 Qxe7 23. Qg3 (23. Ng5 $2 h6 $19) 23... b3 $15) 22... Ne6 {[%emt 0:02:09]} 23. Nxe6 {[%emt 0:00:02] White is more active.} fxe6 {[%emt 0:04:51]} 24. Bf6 {[%emt 0:00:35]} ({Stronger than} 24. Bxe7 Qxe7 25. Ng5 h6 $17) 24... Nc6 $2 {[%emt 0:12:55][%mdl 8192]} (24... Bc6 $16) 25. Ng5 {[%emt 0:00:57]} h6 {[%emt 0:12:03]} 26. Bxg6 {[%emt 0:00:37]} Rf8 {[%emt 0:00:41] Against Bf7+} 27. Bh7+ {[%emt 0:01:42]} Kh8 {[%emt 0:00:06] [#]} 28. Bf5 $1 {[%emt 0:02:38][%mdl 512] White threatens Qxh6+ and mate.} Rxf6 {[%emt 0:00:57]} (28... Rfe8 29. Bxe6) 29. exf6 {[%emt 0:00:02] White mates.} exf5 {[%emt 0:00:13]} 30. fxg7+ {[%emt 0:00:04]} Qxg7 {[%emt 0:00:22] [#]} 31. Re6 $1 {[%emt 0:00:46]} Rf8 {[%emt 0:05:47]} (31... Kg8 32. Rxh6) 32. Rxh6+ {[%emt 0:00:09][%cal Be6h6,Bh6h8,Bh8f8,Bf8f7][%mdl 32]} Kg8 {[%emt 0:00:03]} 33. Ne6 {[%emt 0:01:18][%csl LRf8,LRg7]} Qe7 {[%emt 0:00:40]} 34. Rh8+ {[%emt 0:00:26]} Kf7 {[%emt 0:00:07]} 35. Rxf8+ {[%emt 0:00:22]} Kxe6 {[%emt 0:00:27]} 36. Re1+ {[%emt 0:00:07]} Kd7 {[%emt 0:00:49]} 37. Rxe7+ {[%emt 0:00:03]} Nxe7 {[%emt 0:00:06]} 38. Rf7 {[%emt 0:00:03]} c3 {[%emt 0:00:07]} 39. Qxe7+ {[%emt 0:00:02] Weighted Error Value: White=0.11 (very precise) /Black=0.37} 1-0

[Event "EYTCC Open U18 2022"]
[Site "Thessaloniki"]
[Date "2022.07.18"]
[Round "7.39"]
[White "Karakotsios, Konstantinos"]
[Black "Aydogdu, Selcan Ayberk"]
[Result "0-1"]
[ECO "A40"]
[WhiteElo "1376"]
[BlackElo "1902"]
[Annotator "TA"]
[PlyCount "68"]
[EventDate "2022.07.12"]
[EventType "team-tourn"]
[EventCountry "GRE"]
[SourceTitle "playchess.com"]
[Source "ChessBase"]
[SourceQuality "1"]
[WhiteTeam "Greece"]
[BlackTeam "Turkey"]
[WhiteTeamCountry "GRE"]
[BlackTeamCountry "TUR"]
[TimeControl "40/5400+30:1800+30"]

{[%evp 9,68,0,0,0,0,0,0,-4,0,-18,0,-32,-14,-49,-45,-40,-10,-10,-7,-25,-23,-77,-81,-72,-68,-85,-72,-68,-72,-78,-71,-94,-62,-83,-75,-79,-70,-78,-66,-250,-251,-241,-246,-378,-362,-941,-938,-926,-926,-1298,-1295,-1470,-1470,-1452,-1423,-1362,-1281,-1327,-1348,-1200,-1190]} 1. d4 {[%emt 0:00:04]} e6 {[%emt 0:00:05]} 2. Bf4 {[%emt 0:00:16]} d5 {[%emt 0:00:09]} 3. e3 {[%emt 0:00:08]} Nf6 {[%emt 0:00:07]} 4. Nf3 {[%emt 0:00:09]} Bd6 {[%emt 0:00:05]} 5. Bg3 {[%emt 0:00:32]} O-O {[%emt 0:00:08]} 6. c3 {[%emt 0:00:11] D02: 1 d4 d5 2 Nf3 sidelines, including 2...Nf6 3 g3 and 2...Nf6 3 Bf4.} b6 {[%emt 0:00:13]} 7. Bd3 {[%emt 0:00:20]} Bb7 {[%emt 0:00:17]} 8. Nbd2 {[%emt 0:00:20] The position is equal.} c5 {[%emt 0:00:43]} 9. O-O {[%emt 0:00:53]} Qc7 {[%emt 0:00:57]} 10. Rc1 {[%emt 0:01:45]} Nbd7 {[%emt 0:01:21] [#]} 11. b4 $146 {[%emt 0:08:47]} ({Predecessor:} 11. c4 Bxg3 12. hxg3 dxc4 13. Nxc4 Rad8 14. Qe2 Qb8 15. Rfd1 h6 16. a3 cxd4 17. Nxd4 {0-1 (74) Norowitz,Y (2420)-Svane,R (2613) Chess.com INT 2021}) 11... Bxg3 {[%emt 0:06:35]} 12. hxg3 {[%emt 0:00:50]} Qd6 {[%emt 0:00:21]} (12... c4 $5 {[%cal Rc4d3]} 13. Bc2 b5 $15) 13. bxc5 {[%emt 0:01:29]} bxc5 {[%emt 0:00:06]} 14. Rb1 {[%emt 0:01:25]} Ba6 {[%emt 0:01:38]} 15. Bxa6 {[%emt 0:03:00]} (15. c4 $11) 15... Qxa6 $17 {[%emt 0:00:05]} 16. Rb2 {[%emt 0:07:21]} Rab8 {[%emt 0:08:09]} 17. Qc2 {[%emt 0:02:12]} Rxb2 {[%emt 0:01:32]} 18. Qxb2 {[%emt 0:00:10]} Rb8 {[%emt 0:08:23]} 19. Qc2 {[%emt 0:00:50]} h6 {[%emt 0:02:47]} 20. Rb1 {[%emt 0:02:29]} Rc8 {[%emt 0:03:34]} 21. Qb3 {[%emt 0:01:10]} Nb6 {[%emt 0:01:24]} 22. Qb2 {[%emt 0:21:48]} cxd4 {[%emt 0:10:05]} 23. cxd4 {[%emt 0:01:28]} Ng4 {[%emt 0:08:07] Black is more active.} 24. Nh2 $2 {[%emt 0:05:37] White does not recover from this.} (24. Ne1 $15) 24... Nxh2 $19 {[%emt 0:01:10]} 25. Kxh2 {[%emt 0:00:05]} Qe2 {[%emt 0:00:18]} 26. Kg1 {[%emt 0:07:41] [#]} (26. f3 {was necessary.}) 26... Na4 $1 27. Qb5 {[%emt 0:14:39] [#]} (27. Qb7 Rc2 28. Qxa7) 27... Rc1+ $3 {[%emt 0:00:51][%mdl 512] Black is clearly winning.} 28. Rxc1 {[%emt 0:04:51]} Qxb5 {[%emt 0:00:05]} 29. Nb3 {[%emt 0:00:14]} Qe2 {[%emt 0:00:39][%cal Oa4c3]} 30. Nc5 {[%emt 0:01:05]} Nxc5 {[%emt 0:01:07]} 31. dxc5 {[%emt 0:00:06]} Qb2 {[%emt 0:00:05]} 32. Re1 {[%emt 0:00:23]} Qc3 {[%emt 0:00:33]} 33. Rb1 {[%emt 0:00:09]} Qxc5 {[%emt 0:00:06]} 34. Rb8+ {[%emt 0:00:09]} Kh7 {[%emt 0:00:05] Weighted Error Value: White=0.73/Black=0.07 (flawless)} 0-1

[Event "EYTCC Open U18 2022"]
[Site "Thessaloniki"]
[Date "2022.07.18"]
[Round "7.40"]
[White "Turk, Talha Gunes"]
[Black "Stoimenidis, Markos"]
[Result "1-0"]
[ECO "C53"]
[WhiteElo "1597"]
[BlackElo "1297"]
[Annotator "NA COMBH"]
[PlyCount "61"]
[EventDate "2022.07.12"]
[EventType "team-tourn"]
[EventCountry "GRE"]
[SourceTitle "playchess.com"]
[Source "ChessBase"]
[SourceQuality "1"]
[WhiteTeam "Turkey"]
[BlackTeam "Greece"]
[WhiteTeamCountry "TUR"]
[BlackTeamCountry "GRE"]
[TimeControl "40/5400+30:1800+30"]

1. e4 {[%emt 0:00:35]} e5 {[%emt 0:00:06]} 2. Nf3 {[%emt 0:00:03]} Nc6 {[%emt 0:00:12]} 3. Bc4 {[%emt 0:00:03]} Bc5 {[%emt 0:00:11]} 4. c3 {[%emt 0:00:07]} d6 {[%emt 0:00:18]} 5. b4 {[%emt 0:00:23]} Bb6 {[%emt 0:00:09]} 6. a4 {[%emt 0:00:02]} a6 {[%emt 0:01:27]} 7. d3 {[%emt 0:00:21]} h6 {[%emt 0:01:16]} 8. Nbd2 {[%emt 0:00:16]} Nf6 {[%emt 0:01:39]} 9. h3 {[%emt 0:06:28]} Qe7 {[%emt 0:08:06]} 10. Ba3 {[%emt 0:07:09]} Nd8 {[%emt 0:05:02]} 11. b5 {[%emt 0:08:13]} axb5 {[%emt 0:06:48]} 12. axb5 {[%emt 0:00:26]} Ne6 {[%emt 0:07:18]} 13. Bxe6 {[%emt 0:17:55]} Bxe6 {[%emt 0:01:35]} 14. Nxe5 {[%emt 0:00:26]} O-O {[%emt 0:04:56]} 15. Nef3 {[%emt 0:04:04]} Bd7 {[%emt 0:05:27]} 16. c4 {[%emt 0:00:47]} Nh5 {[%emt 0:01:51]} 17. O-O {[%emt 0:02:35]} Nf4 {[%emt 0:02:11]} 18. d4 {[%emt 0:01:31]} Qf6 {[%emt 0:03:12]} 19. c5 {[%emt 0:14:29]} dxc5 {[%emt 0:05:29]} 20. dxc5 {[%emt 0:01:21]} Ba5 {[%emt 0:07:25]} 21. e5 {[%emt 0:05:53]} Qg6 {[%emt 0:01:51]} 22. Nh4 {[%emt 0:00:18]} Nxh3+ {[%emt 0:01:27]} 23. Kh2 {[%emt 0:01:12]} Qe6 {[%emt 0:00:36]} 24. c6 {[%emt 0:03:36]} Qxe5+ {[%emt 0:01:07]} 25. g3 {[%emt 0:00:12]} Bxd2 {[%emt 0:01:57]} 26. Bxf8 {[%emt 0:03:01]} Bg4 {[%emt 0:02:21]} 27. Rxa8 {[%emt 0:01:07]} Qh5 {[%emt 0:03:14]} 28. Be7+ {[%emt 0:01:43]} Kh7 29. Qc2+ f5 {[%emt 0:02:03]} 30. Qa2 {[%emt 0:01:01]} Qxh4 {[%emt 0:00:54]} 31. Bxh4 {[%emt 0:00:13]} 1-0